[Event "CCT Julius Baer-D1 2024"]
[Site "Online"]
[Date "2024.09.29"]
[Round "3"]
[White "Carlsen, Magnus"]
[Black "Firouzja, Alireza"]
[Result "0-1"]
[Annotator "TA"]
[ECO "B51"]
[WhiteElo "2832"]
[BlackElo "2767"]
[PlyCount "168"]
[EventDate "2024.09.25"]
[EventType "swiss"]
[EventCountry "NET"]
[SourceTitle "playchess.com"]
[Source "ChessBase"]
[SourceQuality "1"]
[TimeControl "600+2"]

{[%evp 9,167,7,14,20,40,20,39,-18,-4,-17,-26,-31,-15,-35,-17,-16,14,-65,-58,-60,-38,-45,-1,-24,0,-31,27,6,0,-2,42,33,99,34,50,-37,0,-82,0,0,0,0,0,0,50,30,28,0,35,0,1,0,30,30,38,18,69,-80,-80,-94,-64,-87,-64,-105,-84,-110,-43,-58,0,-113,-4,-171,-167,-214,-203,-220,-67,-200,-164,-312,-315,-615,-338,-452,-430,-528,-238,-367,0,19,56,32,18,-138,-90,-153,-134,-146,-150,-126,-138,-122,-111,-139,-144,-153,-45,-31,0,0,0,0,0,-180,0,0,0,0,0,0,148,114,29996,231,862,-14,-13,-88,0,-99,-112,-134,0,0,39,-430,-404,-377,0,0,0,-70,184,184,978,-352,-368,-29983,-29984,-29984,-29985,-29986,-29987,-29997,-29997,-29997,-29998,-29998,-29999,-29999]} 1. Nf3 {[%emt 0:00:03]} c5 {[%emt 0:00:19]} 2. e4 {[%emt 0:00:12]} d6 {[%emt 0:00:09]} 3. Bb5+ {[%emt 0:00:10]} Nd7 {[%emt 0:00:01]} 4. O-O {[%emt 0:00:03]} a6 {[%emt 0:00:01]} 5. Be2 {[%emt 0:00:01]} Ngf6 {[%emt 0:00:04]} 6. d3 {[%emt 0:00:01] B51: Siciliaans: Moscow Variant (3 Lb5+) zonder 3...Ld7.} e6 {[%emt 0:00:17]} 7. a4 {[%emt 0:00:15] OK} b6 {[%emt 0:00:28] OK} {Wit's beste zet is} 8. Nfd2 {[%emt 0:00:01] Fout (0.6) 8.Bf4 wordt niet meer gespeeld op niveau.} (8. Bf4 $14) 8... Bb7 $11 {[%emt 0:00:26] OK} 9. Nc3 {[%emt 0:00:10]} Ne5 $146 {[%emt 0:00:14]} ({Predecessor:} 9... Be7 10. f4 O-O 11. Bf3 d5 12. e5 Ne8 13. Bg4 Qb8 14. Nf3 b5 15. d4 cxd4 16. Nxd4 {½-½ Perez Mitjans,O (2419)-Valenzuela Gomez,F (2378) Barcelona GM 02 2021 (2)}) 10. f4 {[%emt 0:00:17]} Nc6 {[%emt 0:00:01] OK} 11. Qe1 {[%emt 0:02:23]} Be7 {[%emt 0:00:21] OK} 12. Nf3 {[%emt 0:00:03]} Qc7 {[%emt 0:00:06] Onnauwkeurig} {Het beste voor Wit is} 13. Qg3 {[%emt 0:00:20] Fout (0.8)} (13. Nd1 $11) 13... g6 $1 $15 {[%emt 0:00:46] Sterk} 14. Bd2 {[%emt 0:00:51] OK} h5 {[%emt 0:00:20]} 15. h3 {[%emt 0:00:08] OK} h4 {[%emt 0:00:43] Onnauwkeurig} 16. Qf2 {[%emt 0:00:01][%cal Of3g5] OK} ({Veel slechter is} 16. Nxh4 Nxe4 17. dxe4 Bxh4 $17) 16... Nh5 {[%emt 0:00:28] OK} 17. Rfe1 {[%emt 0:00:45] Onnauwkeurig} {Het beste voor Zwart zou zijn} Bf6 {[%emt 0:00:17] Fout (0.6)} (17... O-O-O $15) 18. Nd1 {[%emt 0:00:13][%cal Oc2c3]} O-O-O {[%emt 0:00:16]} 19. c3 {[%emt 0:00:04][%cal Oa1b1] OK} Ng3 {[%emt 0:00:59] Onnauwkeurig} 20. Ne3 {[%emt 0:00:09] OK} {Het beste voor Zwart is} d5 {[%emt 0:00:04] Fout (0.7)} (20... Kb8 $14) {Wit heeft de beste optie om te spelen} 21. e5 {[%emt 0:00:07] Fout (0.7)} (21. exd5 $1 $16 exd5 22. Ng4) 21... Be7 $14 {[%emt 0:00:02] Beste (Gemakkelijk)} {Wit kan het besten} 22. Bd1 {[%emt 0:00:20] Fout (0.9)} (22. Nf1 $1 $14) 22... Kb8 {[%emt 0:00:49] Onnauwkeurig} 23. Rb1 {[%emt 0:00:06] [#] Handhaaft de stelling. Fout (0.8)} (23. Rc1 $11) {Het beste voor Zwart is} 23... c4 {[%emt 0:00:24] Zwart is actiever. Fout (0.8)} 24. d4 $11 {[%emt 0:00:21] Beste (Gemakkelijk)} {Zwart zou het beste kunnen spelen} Ne4 {[%emt 0:00:09] OK} 25. Qe2 {[%emt 0:00:03] OK} Ng3 {[%emt 0:00:23] Afleidend Nf1. OK} 26. Qf2 {[%emt 0:00:01] OK} Na5 {[%emt 0:00:01] Fout (0.5)} (26... Ne4 $11 27. Qe2 Ng3 28. Qf2) 27. Bc2 {[%emt 0:00:05]} Nb3 {[%emt 0:00:20]} 28. Ng5 {[%emt 0:00:06] Onnauwkeurig} Rhf8 {[%emt 0:00:22] Onnauwkeurig} 29. Nh7 {[%emt 0:00:14] Onnauwkeurig} Rh8 {[%emt 0:00:02] OK} 30. Ng5 {[%emt 0:00:01] OK} Rhf8 {[%emt 0:00:03] Onnauwkeurig} 31. Nf1 {[%emt 0:00:11][%cal Rf1g3] OK} Bc6 {[%emt 0:00:27] OK} 32. Be3 {[%emt 0:00:02][%cal Rf1g3]} {Aanbevolen voor Zwart is} Nf5 {[%emt 0:00:18] Fout (0.5)} (32... Bxa4 $11 33. Nxg3 hxg3 34. Qxg3 b5) 33. Bxf5 {[%emt 0:00:01] behoudt initiatief. Fout (1.5)} (33. Bxb3 $14 cxb3 34. Nf3) 33... gxf5 $17 {[%emt 0:00:00]} 34. Qxh4 {[%emt 0:00:01]} Bxa4 {[%emt 0:00:02] Onnauwkeurig} 35. Qf2 {[%emt 0:00:07]} a5 {[%emt 0:00:11]} 36. Ng3 {[%emt 0:00:08] Onnauwkeurig} b5 {[%emt 0:00:09]} 37. Nh5 {[%emt 0:00:04] Onnauwkeurig} {Zwart's beste keuze is} b4 {[%emt 0:00:04] Fout (0.7)} (37... Rh8 $17 38. Qf3 Rdf8) 38. Nf6 $15 {[%emt 0:00:01] OK} {Beter voor Zwart is} Bb5 {[%emt 0:00:15] Fout (0.6)} (38... Bxf6 $15 39. exf6 bxc3) 39. h4 {[%emt 0:00:14] handhaaft de gelijkstand. Fout (1.1)} (39. Ngh7 $1 $11) {en Wit staat goed.} 39... Kb7 {[%emt 0:00:10] Fout (1.1)} (39... Bxf6 $1 $17 40. exf6 bxc3) 40. h5 $2 {[%emt 0:00:04] Verliest partij (1.7)} (40. Ngh7 $1 $11) 40... Bxf6 $1 $19 {[%emt 0:00:11] Sterk} ({Veel minder sterk is} 40... Rh8 41. Ngh7 $15) 41. exf6 {[%emt 0:00:01]} Rh8 {[%emt 0:00:00] OK} 42. g4 {[%emt 0:00:41] OK} {Een betere zet voor Zwart is} fxg4 $2 {[%emt 0:00:28] Fout (1.5)} (42... Rh6 $19 {Hoopt vervolgens op ...Rdh8.} 43. gxf5 Rxf6 (43... exf5 44. Qf3 $17) 44. fxe6 Rg8) {Wit dient te spelen} 43. Qh4 {[%emt 0:00:03] Fout (1.3)} (43. f5 $1 $15 e5 (43... Rxh5 44. Bf4 $11) 44. dxe5) 43... a4 {[%emt 0:00:12]} 44. f5 {[%emt 0:00:25] is verplicht. Fout (1.5)} (44. h6 Rdg8 (44... a3 45. bxa3 bxa3 46. Re2 $15) 45. f5 (45. cxb4 Rg6 $14)) 44... exf5 {[%emt 0:00:03] OK} 45. cxb4 $2 {[%emt 0:00:15] Fout (3.0)} (45. Qf2 Rd7 (45... Rxh5 46. Bf4 $19) 46. h6) 45... Ka6 {[%emt 0:00:03] Onnauwkeurig} 46. Bf2 {[%emt 0:00:06] Onnauwkeurig} Rd7 {[%emt 0:00:03] Voorkomt Re7.} 47. h6 {[%emt 0:00:39]} Nd2 {[%emt 0:00:01] Fout (2.9)} (47... f4 $142 48. Kg2 g3 49. Bxg3 fxg3) 48. Rbc1 {[%emt 0:00:21] is gedwongen. Fout (1.3)} (48. Rbd1 c3 49. bxc3 Qxc3 50. h7) {Zwart's beste optie is} 48... Qf4 $2 {[%emt 0:00:01] Gemiste overwinning (3.9)} (48... Qd6 $19 49. Kg2 Qxf6 (49... Qxb4 50. h7 $15)) 49. Be3 $1 $11 {[%emt 0:00:06] Sterk} ({Verkeerd is} 49. h7 $2 Qxg5 50. Qxg5 (50. Re6+ $2 fxe6 51. Qxg5 Nf3+ 52. Kg2 Nxg5 $19) 50... Nf3+ 51. Kg2 Nxg5 $19) 49... Nf3+ {[%emt 0:00:04] Onnauwkeurig} 50. Nxf3 {[%emt 0:00:04] Beste (Gemakkelijk)} Qxf3 {[%emt 0:00:00]} {Beter voor Wit is} 51. Qf2 $2 {[%emt 0:00:04] Fout (1.6)} (51. Rc3 $11 Qe4 52. Qg5) 51... Qh3 $1 $36 {[%emt 0:00:04][%mdl 2048] Zwart heeft controle. Sterk} {Wit kan het beste spelen} 52. Qh2 {[%emt 0:00:09] Fout (0.6)} (52. Rc2) 52... Qxh2+ {[%emt 0:00:00] Beste (Gemakkelijk)} 53. Kxh2 {[%emt 0:00:00]} Rd6 $1 {[%emt 0:00:01] OK} 54. Bg5 {[%emt 0:00:01] [#] OK} Rxf6 $1 {[%emt 0:00:00] Briljant} 55. Bxf6 {[%emt 0:00:03]} Rxh6+ {[%emt 0:00:01] OK} 56. Kg3 {[%emt 0:00:00] Beste} Rxf6 {[%emt 0:00:00][%mdl 4096] Eindspel. KRR-KRB. OK} 57. Kf4 {[%emt 0:00:00] Beste} {Zwart's beste zet is} Bd7 {[%emt 0:00:05] Fout (1.1)} (57... Bc6 $17 58. Re5 Rh6 (58... Kb5 59. Rxf5 Rh6 60. Rxf7 $17)) 58. Re7 $15 {[%emt 0:00:04] Beste (Gemakkelijk)} Be6 {[%emt 0:00:01] Onnauwkeurig} 59. Ra1 $1 {[%emt 0:00:01] Sterk} Kb5 {[%emt 0:00:07][%cal Of6h6] OK} 60. Rb7+ {[%emt 0:00:01] OK} Kc6 {[%emt 0:00:01] OK} 61. Rb8 $2 {[%emt 0:00:11] en Wit is onbezorgd. Verliest partij (1.8)} (61. Ra7 $11) {Zwart zou er goed aan doen} 61... Rg6 $2 {[%emt 0:00:02] Gemiste overwinning (1.8)} (61... Bd7 $1 $19 {Sterke dreiging met ...Re6.} 62. b5+ Kc7) 62. Ra3 {[%emt 0:00:16]} Kc7 {[%emt 0:00:03]} 63. Rb5 {[%emt 0:00:02]} Rh6 {[%emt 0:00:02]} 64. Rxa4 {[%emt 0:00:03] met als doel voor Ra7+. OK} Rh3 {[%emt 0:00:01] blijft in evenwicht. Fout (1.5)} (64... Rg6 $11) 65. Ra7+ $16 {[%emt 0:00:02][%mdl 1024] Wit heeft sterke compensatie. Beste (Gemakkelijk)} Kc6 $2 {[%emt 0:00:01][%mdl 8192] Verliest partij (Mat)} (65... Kc8 $16) 66. Rc5+ $2 {[%emt 0:00:02] schaakmat zetten. Fout (Mat)} (66. Rab7 Rf3+ 67. Kg5 f6+ 68. Kxf6 Rh3 69. R5b6#) 66... Kd6 $2 {[%emt 0:00:01] Fout (6.3)} (66... Kb6 67. Rcc7 Bc8 68. Rxf7 Rf3+ 69. Ke5 Re3+ 70. Kd6 (70. Kxd5 Be6+ 71. Kd6 Bxf7 $17) 70... Re8) {Wit is aan zet} 67. Ra6+ $2 {[%emt 0:00:03]} (67. Rb5 $18 {[%cal Rb5b6]} Bd7 68. Rbb7) 67... Ke7 $11 {[%emt 0:00:01] Beste (Gemakkelijk)} 68. Kg5 {[%emt 0:00:01]} {Zwart heeft de beste optie} Kf8 {[%emt 0:00:07] Fout (0.9)} (68... g3 $17 {...g2 zou dodelijk zijn.} 69. Ra7+ Kd8 70. Ra8+ Kd7 71. Ra7+ Kd8 72. Ra8+ Kd7 73. Ra7+ Kd8) 69. Kf6 {[%emt 0:00:07] handhaaft evenwicht. Fout (1.0)} (69. b5 $11) 69... Rh6+ $17 {[%emt 0:00:01] Beste (Gemakkelijk)} 70. Ke5 {[%emt 0:00:00][%cal Rc5d5] [#]} {Zwart wordt aangeraden} g3 {[%emt 0:00:01] Fout (1.3)} (70... Kg7 $1 $17 71. b5 Rh2) 71. Ra1 $1 $11 {[%emt 0:00:01] Sterk} Rh4 {[%emt 0:00:05] Onnauwkeurig} 72. Rg1 $2 {[%emt 0:00:02][%mdl 8192] behoudt de leiding. Verliest partij (4.7)} (72. b5 $14 g2 73. b6) 72... f4 $19 {[%emt 0:00:00] Dreigt te winnen met ...Rg4. Beste (Gemakkelijk)} 73. b5 {[%emt 0:00:01] [#] Zwart moet nu b6 voorkomen. Beste} {Zwart kan het beste spelen} Ke7 $2 {[%emt 0:00:02] Gemiste overwinning (3.8)} (73... f3 $1 $19 {[%cal Rf3f2]} 74. Rxg3 f2) 74. Rc7+ $11 {[%emt 0:00:01] Beste (Gemakkelijk)} Bd7 $1 {[%emt 0:00:01] Sterk} {Wit aan zet} 75. b6 {[%emt 0:00:02] Fout (0.7)} (75. Kxd5 $11 Rg4 76. b6 (76. Rxc4 $2 {te hebberig.} Be6+ 77. Kc5 Bxc4 $19)) 75... f6+ $2 {[%emt 0:00:04][%mdl 8192] behoudt overwicht. Verliest partij (2.5)} (75... f3 $1 $15 76. Rxd7+ (76. Kxd5 $2 {verliest.} f2 $19) (76. Rxg3 Rh5+ 77. Kf4 f2 $17) 76... Kxd7 77. Rxg3 Rh5+ 78. Kf4 Kc6 79. Rxf3 Rh4+ (79... Kxb6 80. Rf2 $17) 80. Ke3 Kxb6 81. Rf6+ Kb5) 76. Kxd5 $18 {[%emt 0:00:02]} f3 $2 {[%emt 0:00:01] Fout (7.9)} (76... Rh5+ 77. Ke4 Kd6) 77. b7 $4 {[%emt 0:00:04][%mdl 8192] laat alles vlekkeloos verlopen. Gemiste overwinning (13.3)} (77. Rxc4 Be6+ 78. Kc6 Bxc4 $19) (77. Re1+ $18 Kf7 78. Rxd7+ Kg6 79. b7 (79. Kxc4 $2 f2 $19) 79... Rh5+ 80. Kc6 (80. Kxc4 f2 $16)) 77... f2 $19 {[%emt 0:00:02] Beste (Gemakkelijk)} 78. Rxg3 $2 {[%emt 0:00:04]} ({Maar niet} 78. b8=Q Rh5+ (78... fxg1=R $2 {slaat de verkeerde figuur.} 79. Rxd7+ Kxd7 80. Qd6+ Ke8 81. Qe6+ Kf8 82. Qxf6+ Kg8 83. Qxh4 $18) 79. Ke4 fxg1=Q $19 (79... fxg1=R $2 80. Qb7 $18)) (78. Ra1 $19 Rh8 (78... g2 $2 79. Rxd7+ Kxd7 80. b8=Q $18) 79. Rf1) 78... Rh5+ {[%emt 0:00:01] Beste (Gemakkelijk). Zwart zet mat.} ({Ondeugdelijk is} 78... f1=R 79. Rxd7+ (79. b8=R Rf5+ 80. Kxc4 Kd6 $18) 79... Ke8 80. b8=Q+ Kxd7 81. Rg7#) 79. Ke4 {[%emt 0:00:01] OK} f1=Q {[%emt 0:00:01]} (79... f1=B $2 {vergaat.} 80. b8=Q (80. b8=R Kd6 $18) 80... Rh4+ 81. Ke3 $18) 80. Rg7+ {[%emt 0:00:01]} Ke6 {[%emt 0:00:03]} 81. b8=Q {[%emt 0:00:05]} Qd3+ {[%emt 0:00:02]} 82. Kf4 {[%emt 0:00:01]} Rf5+ {[%emt 0:00:00]} 83. Kg4 {[%emt 0:00:00]} Qf3+ {[%emt 0:00:01]} 84. Kh4 {[%emt 0:00:01]} Rh5# {[%emt 0:00:00] Beide spelers verdienden om te winnen.   Blunder waarde: Wit=0.49/Zwart=0.46.  Verliest partij:   	Wit=3      	Zwart=2      Gemiste overwinning: 	Wit=1      	Zwart=3      Fout:        	Wit=16     	Zwart=16     Onnauwkeurig:    	Wit=6      	Zwart=11     OK:         	Wit=16     	Zwart=16     Beste:        	Wit=8      	Zwart=7      Sterk:        	Wit=3      	Zwart=4      Briljant:      	---       	Zwart=1} 0-1

[Event "CCT Julius Baer-D1 2024"]
[Site "Online"]
[Date "2024.09.29"]
[Round "3"]
[White "Carlsen, Magnus"]
[Black "Firouzja, Alireza"]
[Result "1-0"]
[Annotator "TA"]
[ECO "C00"]
[WhiteElo "2832"]
[BlackElo "2767"]
[PlyCount "85"]
[EventDate "2024.09.25"]
[EventType "swiss"]
[EventCountry "NET"]
[SourceTitle "playchess.com"]
[Source "ChessBase"]
[SourceQuality "1"]
[TimeControl "600+2"]

{[%evp 21,85,0,11,-7,-14,-16,-12,-20,-13,-21,5,-16,0,-28,-29,-54,0,0,0,0,0,0,56,0,201,205,213,214,413,211,503,497,499,480,435,311,361,320,639,488,535,556,487,91,105,0,592,-1694,-1606,-1847,2265,2126,1685,1620,29991,29992,29992,29990,29987,29988,6504,5922,29991,29992,29993,29994]} 1. e4 {[%emt 0:00:02]} c5 {[%emt 0:00:03]} 2. Nf3 {[%emt 0:00:02]} e6 {[%emt 0:00:01]} 3. d3 {[%emt 0:00:23]} Nc6 {[%emt 0:00:04]} 4. g3 {[%emt 0:00:03]} d5 {[%emt 0:00:16]} 5. Qe2 {[%emt 0:00:05]} Nge7 {[%emt 0:00:36]} 6. Bg2 {[%emt 0:00:15]} g6 {[%emt 0:00:01]} 7. h4 {[%emt 0:00:04] C00: French: Unusual White 2nd moves.} h6 {[%emt 0:00:05]} 8. e5 {[%emt 0:00:35]} Bg7 {[%emt 0:00:07]} 9. c3 {[%emt 0:00:02]} b5 {[%emt 0:00:44]} 10. Bf4 {[%emt 0:00:12]} a5 {[%emt 0:00:07]} 11. Nbd2 $146 {[%emt 0:00:09]} ({Predecessor:} 11. a4 b4 12. c4 Nf5 13. Nbd2 Nfd4 14. Qd1 Ra7 15. O-O Ba6 16. Rc1 Nxf3+ 17. Nxf3 dxc4 18. dxc4 {0-1 Kalinina,L (2235)-Abramchuk,K (2170) UKR ol Alushta 1999}) 11... b4 {[%emt 0:00:15]} 12. a3 {[%emt 0:00:59]} bxc3 {[%emt 0:00:22]} 13. bxc3 {[%emt 0:00:01]} a4 {[%emt 0:00:00]} 14. Rb1 {[%emt 0:01:25]} Ba6 {[%emt 0:00:32]} 15. O-O {[%emt 0:00:26]} Nf5 {[%emt 0:00:57]} 16. Rfc1 {[%emt 0:00:32]} Rb8 {[%emt 0:01:12]} 17. Nf1 {[%emt 0:00:12]} Rb3 {[%emt 0:00:21]} 18. Ne3 {[%emt 0:01:35]} Rxa3 {[%emt 0:00:17]} (18... O-O $15) 19. Nxf5 $11 {[%emt 0:00:02]} gxf5 {[%emt 0:00:01]} 20. Ra1 {[%emt 0:00:33]} Rxa1 {[%emt 0:00:16]} 21. Rxa1 {[%emt 0:00:00]} c4 {[%emt 0:00:14]} (21... Qd7 $11) 22. Qc2 {[%emt 0:00:32]} ({White should try} 22. dxc4 $14 Bxc4 23. Qe3) 22... Qb6 $2 {[%emt 0:01:54]} (22... Bb5 $1 $11) 23. Qxa4 $18 {[%emt 0:00:53]} Bb5 {[%emt 0:00:01] [#]} 24. Qa3 $1 {[%emt 0:00:00]} (24. Qa8+ $6 Kd7 25. Qa3 Rb8) 24... Bf8 $2 {[%emt 0:01:56]} (24... cxd3 25. Be3 Qb8) 25. Qa8+ {[%emt 0:00:02]} (25. Qb2 $142 cxd3 26. Rb1 (26. Ra8+ Kd7 $18)) 25... Kd7 $2 {[%emt 0:00:01]} (25... Nd8 {was called for.} 26. Be3 Bc5) 26. dxc4 $18 {[%emt 0:00:51]} Bxc4 {[%emt 0:00:08]} 27. Nd2 {[%emt 0:00:08]} Bd3 {[%emt 0:00:19]} 28. c4 {[%emt 0:00:13]} Bg7 {[%emt 0:00:05]} 29. Qa4 {[%emt 0:00:13]} Qd4 $2 {[%emt 0:00:03]} (29... Qb4 30. Qxb4 (30. cxd5 Qxa4 31. Rxa4 exd5 $18) 30... Nxb4 31. Ra7+ Kc6 32. Rxf7 Bf8) 30. Rd1 {[%emt 0:00:21]} Be2 {[%emt 0:00:01]} (30... Rb8 31. Bxd5 (31. Be3 Qc3 $18) 31... exd5 32. e6+ fxe6 33. Bxb8 $18) 31. Rb1 {[%emt 0:00:05]} Rc8 {[%emt 0:00:01]} 32. Qa3 $2 {[%emt 0:00:07]} (32. Be3 $18 {is the precise move to win.} Qxe5 33. cxd5 exd5 34. Nb3) 32... Bf8 $16 {[%emt 0:00:01]} 33. Qa6 {[%emt 0:00:02]} (33. Qc1 $16) 33... Bc5 $2 {[%emt 0:00:01][%mdl 8192] [#]} (33... Bxc4 $11 {and Black stays safe.} 34. Qb7+ (34. Nxc4 Qxc4 35. Qb7+ Rc7 $11) 34... Rc7) 34. cxd5 $4 {[%emt 0:00:01][%mdl 8192]} ({Inferior is} 34. Bxh6 Qxf2+ (34... Nxe5 $2 {loses.} 35. Rb7+ Rc7 36. Be3 $18) 35. Kh2 Nxe5 36. Qb7+ (36. Rb7+ $2 Rc7 $19) 36... Rc7 37. Qb5+ Nc6 $15 (37... Ke7 38. Qb8 $15)) (34. Be3 $1 $18 Bxc4 35. Qb7+ Rc7 36. Bxd4 Bxd4 37. Qa8) 34... Qxf2+ $19 {[%emt 0:00:02]} 35. Kh2 {[%emt 0:00:01]} exd5 $4 {[%emt 0:00:01][%mdl 8192]} (35... Bxa6 $19 36. Nb3 exd5 37. Nxc5+ Qxc5) 36. Qb7+ $18 {[%emt 0:00:01]} Kd8 {[%emt 0:00:03]} 37. Qxf7 {[%emt 0:00:01]} Be7 {[%emt 0:00:05]} 38. Qxd5+ {[%emt 0:00:02]} Ke8 {[%emt 0:00:01]} 39. Qg8+ {[%emt 0:00:02]} Bf8 {[%emt 0:00:03]} 40. Qg6+ {[%emt 0:00:01]} Kd8 {[%emt 0:00:02]} 41. Qf6+ {[%emt 0:00:05]} Ke8 {[%emt 0:00:03]} 42. Rb7 {[%emt 0:00:03]} Ne7 {[%emt 0:00:02]} 43. e6 {[%emt 0:00:00]} 1-0

[Event "CCT Julius Baer-D1 2024"]
[Site "Online"]
[Date "2024.09.29"]
[Round "3"]
[White "Firouzja, Alireza"]
[Black "Carlsen, Magnus"]
[Result "0-1"]
[Annotator "TA"]
[ECO "B12"]
[WhiteElo "2767"]
[BlackElo "2832"]
[PlyCount "110"]
[EventDate "2024.09.25"]
[EventType "swiss"]
[EventCountry "NET"]
[SourceTitle "playchess.com"]
[Source "ChessBase"]
[SourceQuality "1"]
[TimeControl "600+2"]

{[%evp 44,110,194,149,163,0,77,50,137,145,159,100,230,222,221,214,221,192,255,209,244,255,229,259,281,185,170,181,226,-587,-540,-29972,-29970,-29974,-29976,-29976,-29977,-29989,-29990,-29992,-7906,-29990,-637,-637,-630,-630,-615,-606,-348,-355,-345,-375,-333,-1429,-1352,-1183,-1352,-941,-866,-1190,-1226,-29952,-6383,-29955,-29965,-29956,-29962,-5728,-5701]} 1. e4 {[%emt 0:00:02]} c6 {[%emt 0:00:03]} 2. d4 {[%emt 0:00:03]} d5 {[%emt 0:00:01]} 3. e5 {[%emt 0:00:01]} Bf5 {[%emt 0:00:01]} 4. h4 {[%emt 0:00:20]} c5 {[%emt 0:00:16]} 5. dxc5 {[%emt 0:00:32]} Nc6 {[%emt 0:00:02]} 6. Bb5 {[%emt 0:00:29] B12: Caro-Kann: Advance Variation.} Qc7 {[%emt 0:00:02]} 7. Nf3 {[%emt 0:00:27]} e6 {[%emt 0:00:21]} 8. Be3 {[%emt 0:00:05]} Bg4 {[%emt 0:00:36]} 9. Nbd2 {[%emt 0:00:30]} Nh6 {[%emt 0:00:15]} 10. c3 {[%emt 0:00:09]} Nf5 {[%emt 0:00:01]} 11. Bd4 {[%emt 0:00:04]} Be7 {[%emt 0:00:12]} 12. Qa4 {[%emt 0:00:17]} O-O {[%emt 0:00:07]} 13. Bxc6 {[%emt 0:00:33]} bxc6 $146 {[%emt 0:00:07]} ({Predecessor:} 13... Qxc6 14. Qxc6 bxc6 15. Nh2 Nxd4 16. cxd4 Bf5 17. Nhf3 Rfb8 18. b3 a5 19. O-O-O a4 {½-½ Isha,S (2213)-Maerevoet,S (2384) Belgrade Serbia op 2021 (4)}) 14. Nh2 {[%emt 0:00:08]} Nxd4 {[%emt 0:00:22]} 15. Qxd4 {[%emt 0:00:13]} Bf5 {[%emt 0:00:23]} 16. g4 {[%emt 0:00:07]} f6 {[%emt 0:01:47]} 17. gxf5 {[%emt 0:00:16]} fxe5 {[%emt 0:00:01]} 18. Qe3 {[%emt 0:01:00]} Rxf5 {[%emt 0:00:02]} 19. O-O-O {[%emt 0:01:14]} Raf8 {[%emt 0:00:11]} 20. f3 {[%emt 0:01:00]} Bxh4 {[%emt 0:00:18]} 21. Rdg1 {[%emt 0:00:12]} Qe7 {[%emt 0:00:15]} 22. Ng4 {[%emt 0:00:31]} Bg5 {[%emt 0:00:11]} 23. Qe2 {[%emt 0:00:01]} Qxc5 {[%emt 0:01:14]} (23... Bxd2+ $2 24. Qxd2 (24. Kxd2 a5 $18) 24... Rxf3 25. Nxe5 $18) 24. Kb1 $2 {[%emt 0:00:36]} (24. Nxe5 $18 {[%cal Og1g5] Rxg5! is the strong threat.} Qd6 25. Nd3) 24... Bf4 {[%emt 0:00:21]} (24... h5 $1 $11 25. Nxe5 (25. Nb3 Qc4 $11) 25... Bxd2) 25. Nb3 {[%emt 0:00:33]} Qe7 {[%emt 0:00:08]} (25... Qb6 $1 $14) 26. Nf2 $1 $16 {[%emt 0:00:46]} c5 {[%emt 0:00:25]} 27. c4 {[%emt 0:00:05]} (27. Nd3 $142) 27... a5 {[%emt 0:00:10]} (27... Bg5 $16) 28. Nxa5 {[%emt 0:00:27]} Qa7 {[%emt 0:01:20] [#]} 29. Nb3 $1 {[%emt 0:00:01]} Ra8 {[%emt 0:00:10]} 30. a3 {[%emt 0:00:01]} Qb6 {[%emt 0:00:11]} 31. Ka2 {[%emt 0:00:15]} Rb8 {[%emt 0:00:05]} 32. Qc2 {[%emt 0:00:01]} Be3 {[%emt 0:00:06]} 33. Rg2 {[%emt 0:00:01]} e4 {[%emt 0:00:17]} 34. Ng4 {[%emt 0:00:02]} ({Less strong is} 34. fxe4 dxc4 35. Nc1 Bd4 $18) 34... exf3 {[%emt 0:00:03]} 35. Rgh2 {[%emt 0:00:05]} dxc4 {[%emt 0:00:07]} 36. Na1 $4 {[%emt 0:00:05][%mdl 8192]} (36. Na5 $1 $18 {[%cal Ra5c4] is the narrow road to win.} Bd4 37. Nxc4) 36... Bd4 $19 {[%emt 0:00:02]} 37. Rc1 {[%emt 0:00:02]} f2 {[%emt 0:00:02]} 38. Rb1 {[%emt 0:00:02]} f1=Q {[%emt 0:00:30]} 39. Rxf1 {[%emt 0:00:00]} Rxf1 {[%emt 0:00:00]} 40. Qxh7+ {[%emt 0:00:01]} Kf7 {[%emt 0:00:01]} 41. Qc2 {[%emt 0:00:04]} Ke7 {[%emt 0:00:09]} (41... Qb4 $142 42. Qf2+ Bxf2 43. Ne5+ Kg8 44. Rh8+ Kxh8 45. Nf7+ Kg8 46. Nh6+ gxh6 47. b3 cxb3+ 48. Kb2 Qd4#) 42. Re2 {[%emt 0:00:00] [#]} Qxb2+ {[%emt 0:00:19]} (42... c3 $142 $1 43. b4 (43. b3 Qa6) 43... Qa6 (43... cxb4 $2 44. Ne3 $19) 44. Nb3 cxb4 (44... Rxb4 45. Rf2 Rxb3 46. Qxb3 Bxf2 47. Ne3 Bxe3 48. Qxc3 Qe2+ 49. Qb2 Qc4+ 50. Qb3) 45. Rxe6+ Qxe6 46. Ne3 Bxe3 47. Qh7 Bh6 (47... Rf2+ 48. Ka1 Qxb3 49. Qxg7+ Qf7 50. Qe5+ Kd7 51. Qd4+ Bxd4 52. Kb1 Qh7+ 53. Kc1 Qh1#) 48. Qc2 Ra8 49. Qb2 Qc4 (49... cxb2 {leads to mate.} 50. Kxb2) 50. Qc1 Rxc1 51. a4 Rxa4#) 43. Qxb2 $19 {[%emt 0:00:01]} Rxb2+ {[%emt 0:00:00]} 44. Rxb2 {[%emt 0:00:01]} Bxb2 {[%emt 0:00:01]} 45. Kxb2 {[%emt 0:00:00]} Rf4 {[%emt 0:00:03]} 46. Ne3 {[%emt 0:00:07]} g5 {[%emt 0:00:01]} 47. a4 {[%emt 0:00:00]} g4 {[%emt 0:00:03]} 48. a5 $2 {[%emt 0:00:01]} (48. Kc3) 48... Kd7 {[%emt 0:00:02]} 49. Kc3 {[%emt 0:00:03]} g3 {[%emt 0:00:02]} 50. Nac2 {[%emt 0:00:03]} Kc6 {[%emt 0:00:06]} 51. a6 {[%emt 0:00:04]} Kb6 {[%emt 0:00:02]} 52. Na3 {[%emt 0:00:01]} Kxa6 {[%emt 0:00:03]} (52... Rf2 $142 53. Naxc4+ Kxa6 54. Nd6 g2 55. Nxg2 Rxg2 56. Ne8 Kb7 (56... Rg3+ $2 57. Kc4 $19) 57. Nf6 Rg3+ (57... Kc6 $2 58. Ne4 $19) 58. Kc2 Kc6 59. Kd2 c4 60. Ke2 c3 61. Kd1 Rf3 62. Nh7 Rf2 63. Ng5 Kd5 64. Nh3 Rd2+ 65. Kc1 e5 66. Ng1 e4 67. Nh3 e3 68. Ng5 Rf2 69. Kb1 e2 70. Nf3 Rxf3 71. Ka2 e1=Q (71... e1=R {gets mated.} 72. Kb3 Rb1+ 73. Ka2 Rb2+ 74. Ka3 Rf1 75. Ka4 Ra1#) 72. Kb3 c2+ (72... Qb1+ $2 73. Ka3 Rf2 74. Ka4 Ra2#) 73. Kxc2 Qe2+ 74. Kc1 Rf1#) 53. Naxc4 {[%emt 0:00:00]} Rf2 {[%emt 0:00:02]} 54. Ne5 {[%emt 0:00:06]} g2 {[%emt 0:00:01]} 55. Nxg2 {[%emt 0:00:00]} Rxg2 {[%emt 0:00:00]} 0-1